bitfinex-derivatives/quotes_BTCF0:USTF0_20251109
["timestamp","ask_amount","ask_price","bid_price","bid_amount"]
[1762684110312,0.29202083,101850.0,101840.0,0.00014705]
[1762684110715,0.29202083,101850.0,101840.0,0.00114705]
[1762684112823,0.24031318,101850.0,101840.0,0.01199705]
[1762684113418,0.23931318,101850.0,101840.0,0.02384705]
[1762684113718,0.24031318,101850.0,101840.0,0.02384705]
[1762684114322,0.23931318,101850.0,101840.0,0.02384705]
[1762684115622,0.20418034,101850.0,101840.0,0.02384705]
[1762684116322,0.20418034,101850.0,101840.0,0.38464705]
[1762684118629,0.23931318,101850.0,101840.0,0.38464705]
[1762684120524,0.23931318,101850.0,101840.0,0.53294705]
[1762684121623,0.20418034,101850.0,101840.0,0.63116315]
[1762684122630,0.20418034,101850.0,101840.0,0.63316315]
[1762684123023,0.20418034,101850.0,101840.0,0.53494705]
[1762684123628,0.20418034,101850.0,101840.0,0.53694705]
[1762684124633,0.20418034,101850.0,101840.0,0.53494705]
[1762684125423,0.29202083,101850.0,101840.0,0.53494705]
[1762684125827,0.61768799,101850.0,101840.0,0.15044705]
[1762684126235,0.61768799,101850.0,101840.0,0.15244705]
[1762684126927,0.61768799,101850.0,101840.0,0.16429705]
[1762684127124,0.61768799,101850.0,101840.0,0.17614705]
[1762684127432,0.61768799,101850.0,101840.0,0.17414705]
[1762684127837,0.61768799,101850.0,101840.0,0.17214705]
[1762684128134,0.61868799,101850.0,101840.0,0.17214705]
[1762684128618,0.56598034,101850.0,101840.0,0.17214705]
[1762684128818,0.56498034,101850.0,101840.0,0.17214705]
[1762684129326,0.56498034,101850.0,101840.0,0.02384705]
[1762684129529,0.56598034,101850.0,101840.0,0.02384705]
[1762684130139,0.56598034,101850.0,101840.0,0.01199705]
[1762684130434,0.63620097,101850.0,101840.0,0.01199705]
[1762684130632,0.63620097,101850.0,101840.0,0.02384705]
[1762684131034,0.61767785,101850.0,101840.0,0.00014705]
[1762684131234,0.63520097,101850.0,101840.0,0.01199705]
[1762684131820,0.63520097,101850.0,101840.0,0.00014705]
[1762684132231,0.63520097,101850.0,101840.0,0.01199705]
[1762684132534,0.63620097,101850.0,101840.0,0.01199705]
[1762684133041,0.63620097,101850.0,101840.0,0.02384705]
[1762684134833,0.63620097,101850.0,101840.0,0.01199705]
[1762684135332,0.56598034,101850.0,101840.0,0.16029705]
[1762684135648,0.63632405,101850.0,101840.0,0.16029705]
[1762684137940,0.63632405,101850.0,101840.0,0.14844705]
[1762684138142,0.63632405,101850.0,101840.0,0.11344705]
[1762684140632,0.63632405,101850.0,101840.0,0.15694705]
[1762684140940,0.25801143,101850.0,101840.0,0.52859705]
[1762684141337,0.29323727,101850.0,101840.0,0.52859705]
[1762684142542,0.24040618,101850.0,101840.0,0.52859705]
[1762684142742,0.23940618,101850.0,101840.0,0.52859705]
[1762684143141,0.29223727,101850.0,101840.0,0.52859705]
[1762684143342,0.23940618,101850.0,101840.0,0.52859705]
[1762684143552,0.23940618,101850.0,101840.0,0.53059705]
[1762684143841,0.22550618,101850.0,101840.0,0.63081315]
[1762684144344,0.19028034,101850.0,101840.0,0.63081315]
[1762684144944,0.19028034,101850.0,101840.0,0.53259705]
[1762684145442,0.19028034,101850.0,101840.0,0.63081325]
[1762684150744,0.02297705,101860.0,101850.0,0.1537065]
[1762684150943,0.04511705,101860.0,101850.0,0.1537065]
[1762684151241,0.19262562,101860.0,101850.0,0.1537065]
[1762684151441,0.19262562,101860.0,101850.0,0.8753065]
[1762684151744,0.20547562,101860.0,101850.0,0.7771]
[1762684151952,0.20547562,101860.0,101850.0,0.7651]
[1762684153348,0.20547562,101860.0,101850.0,0.8633065]
[1762684154140,0.20547562,101860.0,101850.0,0.7651]
[1762684155747,0.20547562,101860.0,101850.0,0.87854705]
[1762684156846,0.19262562,101860.0,101850.0,0.98875355]
[1762684157946,0.17048562,101860.0,101850.0,0.98875355]
[1762684158148,0.20547562,101860.0,101850.0,0.98875355]
[1762684158444,0.20547562,101860.0,101850.0,0.87854705]
[1762684159045,0.19262562,101860.0,101850.0,0.89054705]
[1762684159750,0.19262562,101860.0,101850.0,0.98875365]
[1762684160046,0.20547562,101860.0,101850.0,0.87854705]
[1762684161147,0.20547562,101860.0,101850.0,0.88154705]
[1762684161848,0.20547562,101860.0,101850.0,0.88454705]
[1762684162049,0.20547562,101860.0,101850.0,0.88354705]
[1762684162548,0.19262562,101860.0,101850.0,0.99275355]
[1762684164246,0.20547562,101860.0,101850.0,0.89254705]
[1762684164547,0.20547562,101860.0,101850.0,0.88254705]
[1762684164848,0.24070146,101860.0,101850.0,0.88254705]
[1762684165253,0.24070146,101860.0,101850.0,0.52174705]
[1762684165434,0.29353255,101860.0,101850.0,0.52174705]
[1762684165640,0.29353255,101860.0,101850.0,0.51974705]
[1762684167347,0.29353255,101860.0,101850.0,0.51774705]
[1762684167945,0.25830671,101860.0,101850.0,0.47424705]
[1762684168152,0.61910671,101860.0,101850.0,0.11344705]
[1762684168447,0.56627562,101860.0,101850.0,0.11344705]
[1762684168645,0.05663,101850.0,101840.0,0.40428]
[1762684168851,0.14466695,101850.0,101840.0,0.40428]
[1762684169148,0.25732449,101850.0,101840.0,0.40428]
[1762684169942,0.25732449,101850.0,101840.0,0.40628]
[1762684170348,0.25732449,101850.0,101840.0,0.40828]
[1762684172354,0.25732449,101850.0,101840.0,0.3648]
[1762684172545,0.61812449,101850.0,101840.0,0.004]
[1762684172746,0.63564603,101850.0,101840.0,0.004]
[1762684174059,0.63564603,101850.0,101840.0,0.04748]
[1762684174257,0.63564603,101850.0,101840.0,0.0251]
[1762684176656,0.63564603,101850.0,101840.0,0.04748]
[1762684179653,0.63564603,101850.0,101840.0,0.0251]
[1762684180054,0.63564603,101850.0,101840.0,0.04748]
[1762684180257,0.20450232,101850.0,101840.0,0.04748]
[1762684180450,0.25726031,101850.0,101840.0,0.40828]
[1762684180850,0.25726031,101850.0,101840.0,0.04748]
[1762684182355,0.25726031,101850.0,101840.0,0.16092705]
[1762684184560,0.20450232,101850.0,101840.0,0.16092705]
[1762684184962,0.2572619,101850.0,101840.0,0.16092705]
[1762684185461,0.29243588,101850.0,101840.0,0.16092705]
[1762684186651,0.2396763,101850.0,101840.0,0.25914325]
[1762684186852,0.2396763,101850.0,101840.0,0.16092705]
[1762684190760,0.2396763,101850.0,101840.0,0.25914325]
[1762684194758,0.29248138,101850.0,101840.0,0.63079325]
[1762684195566,0.2572619,101850.0,101840.0,0.63079325]
[1762684195763,0.29248998,101850.0,101840.0,0.63079325]
[1762684195968,0.2572619,101850.0,101840.0,0.16092705]
[1762684200465,0.63564603,101850.0,101840.0,0.11744705]
[1762684201061,0.56530232,101850.0,101840.0,0.11744705]
[1762684201262,0.65322408,101850.0,101840.0,0.11744705]
[1762684205569,0.65322408,101850.0,101840.0,0.004]
[1762684206772,0.63577419,101850.0,101840.0,0.004]
[1762684212565,0.56530232,101850.0,101840.0,0.004]
[1762684214381,0.05939,101840.0,101830.0,0.00014705]
[1762684214683,0.62004802,101840.0,101830.0,0.00014705]
[1762684214884,0.63770601,101840.0,101830.0,0.00014705]
[1762684215883,0.63870601,101840.0,101830.0,0.00014705]
[1762684219189,0.63870601,101840.0,101830.0,0.04468705]
[1762684225487,0.6561559,101840.0,101830.0,0.04468705]
[1762684227591,0.6561559,101840.0,101830.0,0.00014705]
[1762684227793,0.6561559,101840.0,101830.0,0.02213705]
[1762684229998,0.6561559,101840.0,101830.0,0.04422705]
[1762684233101,0.6561559,101840.0,101830.0,0.02213705]
[1762684234504,0.6561559,101840.0,101830.0,0.04422705]
[1762684235008,0.63877496,101840.0,101830.0,0.02213705]
[1762684235306,0.63877496,101840.0,101830.0,0.00014705]
[1762684235507,0.56823414,101840.0,101830.0,0.00014705]
[1762684236095,0.63877496,101840.0,101830.0,0.00014705]
[1762684240908,0.56823414,101840.0,101830.0,0.00014705]
[1762684241313,0.05816,101830.0,101820.0,0.1483]
[1762684241612,0.65497676,101830.0,101820.0,0.1483]
[1762684242713,0.6375411,101830.0,101820.0,0.1483]
[1762684242906,0.05816,101820.0,101810.0,0.04422705]
[1762684243110,0.11102457,101820.0,101810.0,0.04422705]
[1762684243310,0.25891286,101820.0,101810.0,0.04422705]
[1762684244406,0.25891286,101820.0,101810.0,0.04622705]
[1762684247222,0.20604829,101820.0,101810.0,0.04622705]
[1762684247425,0.25889356,101820.0,101810.0,0.04622705]
[1762684248021,0.27653439,101820.0,101810.0,0.04622705]
[1762684250921,0.27653439,101820.0,101810.0,0.15044705]
[1762684250922,0.258882,101820.0,101810.0,0.15044705]
[1762684251225,0.63733439,101820.0,101810.0,0.15044705]
[1762684252124,0.63733439,101820.0,101810.0,0.00214705]
[1762684253421,0.56684829,101820.0,101810.0,0.00214705]
[1762684253622,0.63733439,101820.0,101810.0,0.00214705]
[1762684257531,0.05873,101800.0,101790.0,0.5534]
[1762684257731,0.09392245,101800.0,101790.0,0.5534]
[1762684257933,0.24134799,101800.0,101790.0,0.5534]
[1762684258431,0.29413667,101800.0,101790.0,0.5534]
[1762684258636,0.30401377,101800.0,101790.0,0.5534]
[1762684259341,0.25122509,101800.0,101790.0,0.5534]
[1762684259539,0.25322509,101800.0,101790.0,0.5534]
[1762684260040,0.25422509,101800.0,101790.0,0.5534]
[1762684260442,0.30701377,101800.0,101790.0,0.5534]
[1762684262839,0.66781377,101800.0,101790.0,0.1926]
[1762684263042,0.63262132,101800.0,101790.0,0.1926]
[1762684265545,0.65031874,101800.0,101790.0,0.1926]
[1762684269048,0.57983264,101800.0,101790.0,0.1926]
[1762684269447,0.65031874,101800.0,101790.0,0.1926]
[1762684269948,0.57983264,101800.0,101790.0,0.1926]
[1762684270142,0.65031874,101800.0,101790.0,0.1926]
[1762684272152,0.65031874,101800.0,101790.0,0.1483]
[1762684272543,0.65031874,101800.0,101790.0,0.16984]
[1762684275645,0.63260234,101800.0,101790.0,0.16984]
[1762684275850,0.63260234,101800.0,101790.0,0.1926]
[1762684278951,0.57983264,101800.0,101790.0,0.1926]
[1762684279153,0.63262915,101800.0,101790.0,0.1926]
[1762684280446,0.63265317,101800.0,101790.0,0.1926]
[1762684281259,0.57983264,101800.0,101790.0,0.1926]
[1762684285370,0.65031874,101800.0,101790.0,0.1926]
[1762684285659,0.63269105,101800.0,101790.0,0.1926]
[1762684286362,0.57983264,101800.0,101790.0,0.16984]
[1762684287062,0.57983264,101800.0,101790.0,0.19256]
[1762684287263,0.57783264,101800.0,101790.0,0.19256]
[1762684287761,0.57683264,101800.0,101790.0,0.16984]
[1762684287959,0.57883264,101800.0,101790.0,0.16984]
[1762684289962,0.57983264,101800.0,101790.0,0.16984]
[1762684290650,0.57983264,101800.0,101790.0,0.1483]
[1762684290858,1.0285544,101800.0,101790.0,0.1483]
[1762684291758,0.05779,101790.0,101780.0,0.02333705]
[1762684291960,0.48910837,101790.0,101780.0,0.02333705]
[1762684292160,0.63565883,101790.0,101780.0,0.02333705]
[1762684292763,0.63565883,101790.0,101780.0,0.00014705]
[1762684294266,0.63665883,101790.0,101780.0,0.00014705]
[1762684295272,0.63665883,101790.0,101780.0,0.04605705]
[1762684301571,0.28028803,101790.0,101780.0,0.42001705]
[1762684302473,0.28028803,101790.0,101780.0,0.56831705]
[1762684302971,0.28028803,101790.0,101780.0,0.56931705]
[1762684303573,0.27928803,101790.0,101780.0,0.56931705]
[1762684303776,0.22644873,101790.0,101780.0,0.57031705]
[1762684305475,0.22644873,101790.0,101780.0,0.56931705]
[1762684305866,0.22744873,101790.0,101780.0,0.56831705]
[1762684306470,0.22644873,101790.0,101780.0,0.56831705]
[1762684306670,0.23982873,101790.0,101780.0,0.56931705]
[1762684306978,0.63591883,101790.0,101780.0,0.19635705]
[1762684307276,0.63691883,101790.0,101780.0,0.19535705]
[1762684308970,0.63791883,101790.0,101780.0,0.19535705]
[1762684310368,0.63791883,101790.0,101780.0,0.19435705]
[1762684311276,0.63891883,101790.0,101780.0,0.19435705]
[1762684311674,0.63891883,101790.0,101780.0,0.14844705]
[1762684311878,0.63891883,101790.0,101780.0,0.00014705]
[1762684312080,0.05783,101770.0,101760.0,0.19179]
[1762684312276,0.47144443,101770.0,101760.0,0.19179]
[1762684312579,0.61858528,101770.0,101760.0,0.19179]
[1762684312769,0.61858528,101770.0,101760.0,0.17032]
[1762684312970,0.61858528,101770.0,101760.0,0.19179]
[1762684313173,0.61961049,101770.0,101760.0,0.19179]
[1762684313377,0.61961049,101770.0,101760.0,0.04349]
[1762684313878,0.61961049,101770.0,101760.0,0.04549]
[1762684315779,0.63723504,101770.0,101760.0,0.04549]
[1762684316177,0.26305504,101770.0,101760.0,0.05847]
[1762684316381,0.24446829,101770.0,101760.0,0.05847]
[1762684316679,0.25824829,101770.0,101760.0,0.04549]
[1762684317673,0.24064737,101770.0,101760.0,0.04549]
[1762684317874,0.61904829,101770.0,101760.0,0.04549]
[1762684318276,0.56625606,101770.0,101760.0,0.04549]
[1762684319382,0.61903287,101770.0,101760.0,0.04549]
[1762684319769,0.56625606,101770.0,101760.0,0.04549]
[1762684320389,0.56625606,101770.0,101760.0,0.002]
[1762684320891,0.63669504,101770.0,101760.0,0.002]
[1762684321780,0.56625606,101770.0,101760.0,0.002]
[1762684322273,0.63660404,101770.0,101760.0,0.002]
[1762684322474,0.56625606,101770.0,101760.0,0.002]
[1762684322985,0.05827,101760.0,101750.0,0.00026599]
[1762684323176,0.49042719,101760.0,101750.0,0.00026599]
[1762684323372,0.02233,101740.0,101730.0,0.38244]
[1762684323581,0.14613088,101740.0,101730.0,0.04338]
[1762684324387,0.14715609,101740.0,101730.0,0.04338]
[1762684324585,0.05827,101730.0,101720.0,0.40432705]
[1762684324785,0.09348581,101730.0,101720.0,0.40432705]
[1762684325088,0.24032074,101730.0,101720.0,0.40432705]
[1762684325277,0.2062016,101730.0,101720.0,0.40432705]
[1762684327589,0.2062016,101730.0,101720.0,0.40632705]
[1762684328786,0.2062016,101730.0,101720.0,0.55662705]
[1762684331194,0.2062016,101730.0,101720.0,0.56960705]
[1762684331394,0.1479316,101730.0,101720.0,0.66793905]
[1762684332090,0.1479316,101730.0,101720.0,0.56960705]
[1762684332091,0.1924216,101730.0,101720.0,0.56960705]
[1762684332293,0.2062016,101730.0,101720.0,0.56960705]
[1762684332792,0.1924216,101730.0,101720.0,0.56960705]
[1762684335295,0.19260615,101730.0,101720.0,0.56960705]
[1762684336794,0.20638615,101730.0,101720.0,0.55662705]
[1762684338088,0.2065707,101730.0,101720.0,0.55662705]
[1762684338487,0.20675525,101730.0,101720.0,0.55662705]
[1762684342803,0.19297525,101730.0,101720.0,0.56960705]
[1762684343295,0.20675525,101730.0,101720.0,0.55662705]
[1762684343902,0.19297525,101730.0,101720.0,0.56960705]
[1762684344401,0.20675525,101730.0,101720.0,0.56960705]
[1762684344701,0.19297525,101730.0,101720.0,0.56960705]
[1762684345296,0.2281196,101730.0,101720.0,0.56960705]
[1762684348304,0.28083613,101730.0,101720.0,0.56960705]
[1762684351903,0.29457613,101730.0,101720.0,0.56960705]
[1762684352305,0.25943178,101730.0,101720.0,0.56960705]
[1762684353007,0.24499178,101730.0,101720.0,0.56960705]
[1762684353400,0.25873178,101730.0,101720.0,0.55662705]
[1762684353601,0.24126291,101730.0,101720.0,0.55662705]
[1762684354599,0.25873178,101730.0,101720.0,0.55662705]
[1762684358320,0.22353178,101730.0,101720.0,0.66844905]
[1762684358621,0.28024893,101730.0,101720.0,0.57011705]
[1762684359717,0.20120178,101730.0,101720.0,0.66844905]
[1762684359917,0.23646362,101730.0,101720.0,0.66844905]
[1762684360119,0.28010362,101730.0,101720.0,0.57011705]
[1762684363428,0.24484178,101730.0,101720.0,0.57011705]
[1762684363919,0.25858178,101730.0,101720.0,0.57011705]
[1762684364830,0.29384919,101730.0,101720.0,0.57011705]
[1762684365727,0.20586525,101730.0,101720.0,0.57011705]
[1762684366425,0.27615396,101730.0,101720.0,0.55662705]
[1762684369130,0.27615396,101730.0,101720.0,0.56935705]
[1762684369334,0.26241396,101730.0,101720.0,0.56935705]
[1762684375538,0.24508562,101730.0,101720.0,0.56935705]
[1762684376831,0.20144562,101730.0,101720.0,0.56935705]
[1762684377036,0.23675157,101730.0,101720.0,0.66768905]
[1762684377435,0.28098157,101730.0,101720.0,0.56935705]
[1762684379737,0.25968157,101730.0,101720.0,0.66768905]
[1762684379939,0.1837912,101730.0,101720.0,0.66768905]
[1762684380130,0.2067212,101730.0,101720.0,0.66768905]
[1762684380337,0.2067212,101730.0,101720.0,0.69420905]
[1762684381434,0.2067212,101730.0,101720.0,0.59587705]
[1762684381941,0.2280212,101730.0,101720.0,0.59587705]
[1762684383040,0.2280212,101730.0,101720.0,0.69420905]
[1762684383443,0.1837912,101730.0,101720.0,0.59587705]
[1762684383737,0.1837912,101730.0,101720.0,0.56935705]
[1762684384337,0.17141525,101730.0,101720.0,0.56935705]
[1762684384538,0.19271525,101730.0,101720.0,0.56935705]
[1762684384937,0.2279913,101730.0,101720.0,0.56935705]
[1762684385335,0.28090538,101730.0,101720.0,0.56935705]
[1762684385543,0.24562933,101730.0,101720.0,0.56935705]
[1762684386936,0.25870933,101730.0,101720.0,0.56935705]
[1762684387141,0.27608396,101730.0,101720.0,0.56935705]
[1762684388544,0.25871903,101730.0,101720.0,0.56935705]
[1762684388750,0.20579525,101730.0,101720.0,0.55662705]
[1762684389651,0.27608396,101730.0,101720.0,0.19582705]
[1762684390246,0.27608396,101730.0,101720.0,0.55662705]
[1762684390750,0.20579525,101730.0,101720.0,0.55662705]
[1762684391251,0.27608396,101730.0,101720.0,0.55662705]
[1762684395556,0.25869927,101730.0,101720.0,0.55662705]
[1762684397255,0.20579525,101730.0,101720.0,0.55662705]
[1762684397748,0.27608396,101730.0,101720.0,0.55662705]
[1762684399552,0.20579525,101730.0,101720.0,0.55662705]
[1762684401353,0.25871791,101730.0,101720.0,0.55662705]
[1762684404653,0.25871791,101730.0,101720.0,0.19582705]
[1762684404858,0.20579525,101730.0,101720.0,0.19582705]
[1762684405362,0.27608396,101730.0,101720.0,0.19582705]
[1762684405555,0.56659525,101730.0,101720.0,0.19582705]
[1762684405859,0.65451701,101730.0,101720.0,0.19582705]
[1762684407260,0.65451701,101730.0,101720.0,0.17408705]
[1762684407460,0.65451701,101730.0,101720.0,0.15244705]
[1762684408164,0.65451701,101730.0,101720.0,0.17468705]
[1762684409360,0.65451701,101730.0,101720.0,0.19751705]
[1762684411558,0.56659525,101730.0,101720.0,0.19751705]
[1762684412149,0.56652379,101730.0,101720.0,0.00414705]
[1762684412351,0.05541,101700.0,101690.0,0.41885]
[1762684412553,0.12757954,101700.0,101690.0,0.41885]
[1762684412755,0.27424522,101700.0,101690.0,0.41885]
[1762684413358,0.25659039,101700.0,101690.0,0.41885]
[1762684413556,0.20374804,101700.0,101690.0,0.42085]
[1762684414268,0.25657062,101700.0,101690.0,0.42085]
[1762684414973,0.25657062,101700.0,101690.0,0.42385]
[1762684415265,0.25657062,101700.0,101690.0,0.41087]
[1762684415654,0.23895237,101700.0,101690.0,0.41087]
[1762684416462,0.29177495,101700.0,101690.0,0.41087]
[1762684417365,0.23895237,101700.0,101690.0,0.41087]
[1762684417768,0.24876685,101700.0,101690.0,0.41087]
[1762684418766,0.24876685,101700.0,101690.0,0.55917]
[1762684418959,0.30158943,101700.0,101690.0,0.55917]
[1762684419269,0.24876685,101700.0,101690.0,0.55917]
[1762684419657,0.30158943,101700.0,101690.0,0.55917]
[1762684420670,0.30258943,101700.0,101690.0,0.55617]
[1762684421470,0.30258943,101700.0,101690.0,0.56947]
[1762684421970,0.30258943,101700.0,101690.0,0.56747]
[1762684422270,0.24976685,101700.0,101690.0,0.56747]
[1762684422469,0.30558943,101700.0,101690.0,0.55417]
[1762684423272,0.25276685,101700.0,101690.0,0.55417]
[1762684423571,0.25076685,101700.0,101690.0,0.55417]
[1762684424073,0.24976685,101700.0,101690.0,0.55417]
[1762684425659,0.24876685,101700.0,101690.0,0.55417]
[1762684426474,0.24976685,101700.0,101690.0,0.55417]
[1762684426773,0.24976685,101700.0,101690.0,0.5669]
[1762684428172,0.24876685,101700.0,101690.0,0.5669]
[1762684428369,0.23881685,101700.0,101690.0,0.5669]
[1762684428572,0.19435685,101700.0,101690.0,0.5669]
[1762684428962,0.15915252,101700.0,101690.0,0.5669]
[1762684429365,0.19435685,101700.0,101690.0,0.5669]
[1762684430875,0.14933804,101700.0,101690.0,0.5669]
[1762684433580,0.18454237,101700.0,101690.0,0.5669]
[1762684435170,0.14933804,101700.0,101690.0,0.5669]
[1762684435376,0.14933804,101700.0,101690.0,0.6652609]
[1762684437382,0.14833804,101700.0,101690.0,0.6652609]
[1762684437582,0.14833804,101700.0,101690.0,0.6662609]
[1762684438883,0.04876138,101710.0,101700.0,0.0983512]
[1762684439085,0.04876138,101710.0,101700.0,0.4591512]
[1762684439981,0.2191202,101710.0,101700.0,0.4591512]
[1762684440178,0.18491587,101710.0,101700.0,0.3608]
[1762684440377,0.18491587,101710.0,101700.0,0.4591512]
[1762684440579,0.20724587,101710.0,101700.0,0.3608]
[1762684441288,0.20724587,101710.0,101700.0,0.3618]
[1762684441289,0.2414502,101710.0,101700.0,0.3618]
[1762684443094,0.2414502,101710.0,101700.0,0.5101]
[1762684443292,0.20624587,101710.0,101700.0,0.5101]
[1762684443489,0.2414502,101710.0,101700.0,0.5091]
[1762684443995,0.2414502,101710.0,101700.0,0.5101]
[1762684444190,0.20624587,101710.0,101700.0,0.5101]
[1762684444991,0.20624587,101710.0,101700.0,0.5091]
[1762684445290,0.20624587,101710.0,101700.0,0.5101]
[1762684445492,0.2414502,101710.0,101700.0,0.5101]
[1762684446288,0.20624587,101710.0,101700.0,0.5101]
[1762684446686,0.20624587,101710.0,101700.0,0.5091]
[1762684446882,0.2414502,101710.0,101700.0,0.5091]
[1762684449094,0.2424502,101710.0,101700.0,0.5091]
[1762684450998,0.2424502,101710.0,101700.0,0.6074512]
[1762684451589,0.20724587,101710.0,101700.0,0.6074512]
[1762684452997,0.20624587,101710.0,101700.0,0.6074512]
[1762684453202,0.20624587,101710.0,101700.0,0.5091]
[1762684453395,0.2414502,101710.0,101700.0,0.5101]
[1762684454403,0.2414502,101710.0,101700.0,0.5091]
[1762684455690,0.25906845,101710.0,101700.0,0.5091]
[1762684455885,0.26006845,101710.0,101700.0,0.5091]
[1762684460804,0.27774305,101710.0,101700.0,0.5091]
[1762684465612,0.26013573,101710.0,101700.0,0.5091]
[1762684467011,0.27774305,101710.0,101700.0,0.5091]
[1762684467216,0.20724587,101710.0,101700.0,0.5091]
[1762684468414,0.27774305,101710.0,101700.0,0.5091]
[1762684469926,0.27774305,101710.0,101700.0,0.1483]
[1762684473019,0.27774305,101710.0,101700.0,0.5091]
[1762684473823,0.26013092,101710.0,101700.0,0.5091]
[1762684475122,0.26013092,101710.0,101700.0,0.1483]
[1762684475312,0.27774305,101710.0,101700.0,0.1483]
[1762684475513,0.20724587,101710.0,101700.0,0.1483]
[1762684477826,0.27774305,101710.0,101700.0,0.1483]
[1762684478019,0.20724587,101710.0,101700.0,0.1483]
[1762684478922,0.27774305,101710.0,101700.0,0.1483]
[1762684486728,0.27774305,101710.0,101700.0,0.5091]
[1762684505643,0.29536735,101710.0,101700.0,0.5091]
[1762684507840,0.65616735,101710.0,101700.0,0.1483]
[1762684508252,0.05585,101690.0,101680.0,0.50919804]
[1762684508544,0.20373169,101690.0,101680.0,0.36089804]
[1762684508740,0.27429176,101690.0,101680.0,0.36089804]
[1762684509247,0.20373169,101690.0,101680.0,0.36089804]
[1762684509936,0.20473169,101690.0,101680.0,0.36089804]
[1762684512250,0.2575638,101690.0,101680.0,0.36089804]
[1762684512550,0.20473169,101690.0,101680.0,0.36089804]
[1762684513251,0.27529176,101690.0,101680.0,0.36089804]
[1762684515752,0.25757407,101690.0,101680.0,0.36089804]
[1762684516148,0.29280038,101690.0,101680.0,0.36089804]
[1762684519476,0.29280038,101690.0,101680.0,0.50919804]
[1762684525743,0.25757407,101690.0,101680.0,0.50919804]
[1762684534356,0.20473169,101690.0,101680.0,0.50919804]
[1762684535267,0.27529176,101690.0,101680.0,0.50919804]
[1762684536956,0.27529176,101690.0,101680.0,0.36089804]
[1762684538563,0.25768402,101690.0,101680.0,0.36089804]
[1762684542864,0.25768402,101690.0,101680.0,0.50919804]
[1762684545668,0.23565402,101690.0,101680.0,0.50919804]
[1762684545870,0.23565402,101690.0,101680.0,0.60756864]
[1762684546171,0.25822402,101690.0,101680.0,0.60756864]
[1762684548564,0.23209176,101690.0,101680.0,0.60756864]
[1762684548764,0.24979027,101690.0,101680.0,0.45926864]
[1762684549574,0.19683648,101690.0,101680.0,0.45926864]
[1762684550173,0.19683648,101690.0,101680.0,0.48583582]
[1762684550364,0.14788169,101690.0,101680.0,0.73167582]
[1762684550566,0.14788169,101690.0,101680.0,0.73267582]
[1762684551668,0.14788169,101690.0,101680.0,0.48683582]
[1762684551873,0.14788169,101690.0,101680.0,0.73267582]
[1762684552070,0.09279479,101700.0,101680.0,0.83104642]
[1762684552267,0.09279479,101700.0,101690.0,0.459161]
[1762684552464,0.24113089,101700.0,101690.0,0.459161]
[1762684552666,0.27151468,101700.0,101690.0,0.607461]
[1762684552865,0.24924468,101700.0,101690.0,0.607461]
[1762684553065,0.19629089,101700.0,101690.0,0.607461]
[1762684553370,0.04886184,101710.0,101700.0,0.0983513]
[1762684553574,0.04886184,101710.0,101700.0,0.4591513]
[1762684553776,0.19596541,101710.0,101700.0,0.4591513]
[1762684553978,0.19596541,101710.0,101700.0,0.3608]
[1762684554370,0.21823541,101710.0,101700.0,0.3608]
[1762684554668,0.21823541,101710.0,101700.0,0.4591513]
[1762684555277,0.21823541,101710.0,101700.0,0.4601513]
[1762684555674,0.23588441,101710.0,101700.0,0.4601513]
[1762684556370,0.25845441,101710.0,101700.0,0.4601513]
[1762684557178,0.29367077,101710.0,101700.0,0.3618]
[1762684557581,0.25845441,101710.0,101700.0,0.3618]
[1762684558179,0.29366418,101710.0,101700.0,0.3618]
[1762684559075,0.25845441,101710.0,101700.0,0.3618]
[1762684559276,0.2936589,101710.0,101700.0,0.3618]
[1762684559473,0.2946589,101710.0,101700.0,0.3618]
[1762684559672,0.25945441,101710.0,101700.0,0.3618]
[1762684560381,0.25945441,101710.0,101700.0,0.3608]
[1762684561576,0.25945441,101710.0,101700.0,0.4591513]
[1762684561776,0.25945441,101710.0,101700.0,0.3608]
[1762684562779,0.25945441,101710.0,101700.0,0.4591513]
[1762684562972,0.19686156,101710.0,101700.0,0.4591513]
[1762684563281,0.21461441,101710.0,101700.0,0.6074513]
[1762684563478,0.29422782,101710.0,101700.0,0.5091]
[1762684563679,0.20607062,101710.0,101700.0,0.5091]
[1762684563981,0.24127403,101710.0,101700.0,0.1483]
[1762684564669,0.24127403,101710.0,101700.0,0.1493]
[1762684564872,0.27663069,101710.0,101700.0,0.1493]
[1762684565474,0.27563069,101710.0,101700.0,0.1493]
[1762684565674,0.2930818,101710.0,101700.0,0.1493]
[1762684566078,0.2940818,101710.0,101700.0,0.1493]
[1762684566280,0.05777,101700.0,101690.0,0.5091]
[1762684566482,0.14578229,101700.0,101690.0,0.5091]
[1762684566670,0.29268234,101700.0,101690.0,0.5091]
[1762684568376,0.29368234,101700.0,101690.0,0.5091]
[1762684571187,0.25847676,101700.0,101690.0,0.5091]
[1762684573184,0.25847676,101700.0,101690.0,0.1483]
[1762684577788,0.25847676,101700.0,101690.0,0.5091]
[1762684580384,0.29373206,101700.0,101690.0,0.5091]
[1762684581093,0.25847676,101700.0,101690.0,0.5091]
[1762684582392,0.29374982,101700.0,101690.0,0.5091]
[1762684583581,0.24094311,101700.0,101690.0,0.5091]
[1762684584795,0.24094311,101700.0,101690.0,0.607461]
[1762684585290,0.24094311,101700.0,101690.0,0.5091]
[1762684585698,0.29374982,101700.0,101690.0,0.5091]
[1762684586386,0.29374982,101700.0,101690.0,0.6074609]
[1762684587399,0.29374982,101700.0,101690.0,0.5091]
[1762684587900,0.29374982,101700.0,101690.0,0.607461]
[1762684588100,0.24094311,101700.0,101690.0,0.607461]
[1762684590498,0.24094311,101700.0,101690.0,0.5091]
[1762684592003,0.29374982,101700.0,101690.0,0.5091]
[1762684592192,0.25847676,101700.0,101690.0,0.5091]
[1762684595805,0.20567005,101700.0,101690.0,0.5091]
[1762684597201,0.27623012,101700.0,101690.0,0.5091]
[1762684598709,0.27623012,101700.0,101690.0,0.1483]
[1762684599107,0.29379153,101700.0,101690.0,0.1483]
[1762684600108,0.29379153,101700.0,101690.0,0.5091]
[1762684601601,0.20567005,101700.0,101690.0,0.5091]
[1762684602711,0.20567005,101700.0,101690.0,0.1483]
[1762684603011,0.29379153,101700.0,101690.0,0.1483]
[1762684604610,0.29379153,101700.0,101690.0,0.5091]
[1762684605216,0.36439367,101700.0,101690.0,0.5091]
[1762684605518,0.27627219,101700.0,101690.0,0.5091]
[1762684608811,0.25862324,101700.0,101690.0,0.5091]
[1762684612316,0.25862324,101700.0,101690.0,0.6074609]
[1762684612520,0.25862324,101700.0,101690.0,0.5091]
[1762684613418,0.25862324,101700.0,101690.0,0.607461]
[1762684615307,0.25862324,101700.0,101690.0,0.5091]
[1762684617308,0.25862324,101700.0,101690.0,0.607461]
[1762684617508,0.25862324,101700.0,101690.0,0.5091]